fUSD/lending_fUSD_20240319
["ID","MTS","AMOUNT","RATE_DAILY","PERIOD"]
[319588568,1710883890085,-2338.93,0.00030958,2]
[319588569,1710883890094,-13155.35,0.00030958,2]
[319588570,1710883890104,-569.11,0.00030958,2]
[319588571,1710883890117,-753.19,0.00030958,2]
[319588572,1710883890126,-11295.13,0.00030958,2]
[319588573,1710883890135,-2434.72,0.00030958,2]
[319588574,1710883890144,-500.0,0.00030958,2]
[319588575,1710883890154,-5511.71,0.00030958,2]
[319588576,1710883890164,-686.32,0.00030958,2]
[319588577,1710883890173,-151.0,0.00030958,7]
[319588578,1710883890182,-151.0,0.00030958,7]
[319588579,1710883890192,-151.0,0.00030958,7]
[319588580,1710883890202,-3459.87,0.00030958,2]
[319588581,1710883890211,-2290.53,0.00030958,2]
[319588582,1710883890220,-3981.65,0.00030958,2]
[319588583,1710883890230,-1344.41,0.00030958,2]
[319588584,1710883890240,-22669.64,0.00030958,2]
[319588585,1710883890250,-500.0,0.00030958,2]
[319588586,1710883890259,-16782.69,0.00030958,2]
[319588587,1710883890270,-9329.88,0.00030958,2]
[319588588,1710883890279,-6850.67,0.00030958,2]
[319588589,1710883890288,-500.0,0.00030958,2]
[319588590,1710883890297,-500.0,0.00030958,2]
[319588591,1710883890306,-9425.82,0.00030958,2]
[319588592,1710883890315,-500.0,0.00030958,2]
[319588593,1710883890324,-500.0,0.00030958,2]
[319588594,1710883890333,-7313.78,0.00030958,2]
[319588595,1710883890342,-500.0,0.00030958,2]
[319588596,1710883890351,-3365.03,0.00030958,2]
[319588597,1710883890360,-6200.56,0.00030958,2]
[319588598,1710883890369,-500.0,0.00030958,2]
[319588599,1710883890379,-4563.38,0.00030958,2]
[319588600,1710883890387,-864.79,0.00030958,2]
[319588601,1710883890397,-9598.64,0.00030958,2]
[319588602,1710883890406,-294.136098,0.00030958,7]
[319588603,1710883890415,-294.136098,0.00030958,7]
[319588604,1710883890425,-500.0,0.00030958,2]
[319588605,1710883890434,-294.136098,0.00030958,7]
[319588606,1710883890443,-500.0,0.00030958,2]
[319588607,1710883890452,-2680.0,0.00030958,2]
[319588608,1710883890462,-294.136098,0.00030958,7]
[319588609,1710883890470,-3800.13,0.00030958,2]
[319588610,1710883890480,-294.136098,0.00030958,7]
[319588611,1710883890489,-294.136098,0.00030958,7]
[319588612,1710883890498,-10097.33,0.00030958,2]
[319588613,1710883890507,-8797.6,0.00030958,2]
[319588614,1710883890517,-7590.43,0.00030958,2]
[319588615,1710883890529,-542.95,0.00030958,2]
[319588616,1710883890539,-563.84,0.00030958,2]
[319588617,1710883890548,-500.0,0.00030958,2]
[319588618,1710883890558,-1046.81,0.00030958,2]
[319588619,1710883890567,-535.47,0.00030958,2]
[319588620,1710883890576,-8014.33,0.00030958,2]
[319588621,1710883890585,-520.47,0.00030958,2]
[319588622,1710883890595,-1416.49,0.00030958,2]
[319588623,1710883890604,-48477.6,0.00030958,2]
[319588624,1710883890613,-7398.21,0.00030958,2]
[319588625,1710883890622,-500.0,0.00030958,2]
[319588626,1710883890631,-151.0,0.00030958,7]
[319588627,1710883890640,-151.0,0.00030958,7]
[319588628,1710883890650,-151.0,0.00030958,7]
[319588629,1710883890659,-5350.36,0.00030958,2]
[319588630,1710883890668,-3797.58,0.00030958,2]
[319588631,1710883890677,-7343.47,0.00030958,2]
[319588632,1710883890686,-7073.37,0.00030958,2]
[319588633,1710883890696,-500.0,0.00030958,2]
[319588634,1710883890706,-500.0,0.00030958,2]
[319588635,1710883890715,-5058.71,0.00030958,2]
[319588636,1710883890724,-3114.8,0.00030958,2]
[319588637,1710883890733,-516.58,0.00030958,2]
[319588638,1710883890742,-3384.78,0.00030958,2]
[319588639,1710883890751,-9605.72,0.00030958,2]
[319588640,1710883890760,-4830.77,0.00030958,2]
[319588641,1710883890771,-151.0,0.00030958,7]
[319588642,1710883890780,-1521.0,0.00030958,2]
[319588643,1710883890789,-151.0,0.00030958,7]
[319588644,1710883890798,-151.0,0.00030958,7]
[319588645,1710883890807,-1377.4,0.00030958,2]
[319588646,1710883890816,-6164.8,0.00030958,2]
[319588647,1710883890825,-10419.2,0.00030958,2]
[319588648,1710883890834,-500.0,0.00030958,2]
[319588649,1710883890843,-27662.5,0.00030958,2]
[319588650,1710883890853,-13801.64,0.00030958,2]
[319588651,1710883890863,-1319.55,0.00030958,2]
[319588652,1710883890872,-813.27,0.00030958,2]
[319588653,1710883890881,-1101.07,0.00030958,2]
[319588654,1710883890890,-16616.69,0.00030958,2]
[319588655,1710883890899,-4213.14,0.00030958,2]
[319588656,1710883890908,-7171.46,0.00030958,2]
[319588657,1710883890918,-2825.94,0.00030958,2]
[319588658,1710883890926,-500.0,0.00030958,2]
[319588659,1710883890936,-500.0,0.00030958,2]
[319588660,1710883890946,-151.0,0.00030958,7]
[319588661,1710883890955,-151.0,0.00030958,7]
[319588662,1710883890966,-5213.56,0.00030958,2]
[319588663,1710883890975,-151.0,0.00030958,7]
[319588664,1710883890984,-1738.76,0.00030958,2]
[319588665,1710883890994,-3839.08,0.00030958,2]
[319588666,1710883891003,-3525.85,0.00030958,2]
[319588667,1710883891014,-15088.23,0.00030958,2]
[319588668,1710883891025,-15203.85,0.00030958,2]
[319588669,1710883891035,-732.9,0.00030958,2]
[319588670,1710883891044,-2988.25,0.00030958,2]
[319588671,1710883891054,-10000.0,0.00030958,7]
[319588672,1710883891064,-10000.0,0.00030958,7]
[319588673,1710883891073,-10000.0,0.00030958,7]
[319588674,1710883891083,-1562.83,0.00030958,2]
[319588675,1710883891094,-8565.47,0.00030958,2]
[319588676,1710883891104,-10000.0,0.00030958,7]
[319588677,1710883891113,-500.0,0.00030958,2]
[319588678,1710883891124,-10000.0,0.00030958,7]
[319588679,1710883891134,-10000.0,0.00030958,7]
[319588680,1710883891146,-579.17,0.00030958,2]
[319588681,1710883891155,-1618.7,0.00030958,2]
[319588682,1710883891165,-6726.59,0.00030958,2]
[319588683,1710883891175,-710.524031,0.00030958,7]
[319588684,1710883891184,-710.524031,0.00030958,7]
[319588685,1710883891194,-710.524031,0.00030958,7]
[319588686,1710883891205,-27171.19,0.00030958,2]
[319588687,1710883891214,-500.0,0.00030958,2]
[319588688,1710883891223,-1155.93,0.00030958,2]
[319588689,1710883891233,-8385.96,0.00030958,2]
[319588690,1710883891242,-710.524031,0.00030958,7]
[319588691,1710883891252,-710.524031,0.00030958,7]
[319588692,1710883891261,-710.524031,0.00030958,7]
[319588693,1710883891271,-3340.38,0.00030958,2]
[319588694,1710883891280,-1368.17,0.00030958,2]
[319588695,1710883891290,-500.0,0.00030958,2]
[319588696,1710883891299,-500.0,0.00030958,2]
[319588697,1710883891308,-552.59,0.00030958,2]
[319588698,1710883891317,-500.0,0.00030958,2]
[319588699,1710883891326,-500.0,0.00030958,2]
[319588700,1710883891335,-15669.37,0.00030958,2]
[319588701,1710883891344,-11650.07,0.00030958,2]
[319588702,1710883891353,-42879.44,0.00030958,2]
[319588703,1710883891362,-500.0,0.00030958,2]
[319588704,1710883891371,-8051.45,0.00030958,2]
[319588705,1710883891380,-4699.27,0.00030958,2]
[319588706,1710883891390,-197.669823,0.00030958,7]
[319588707,1710883891400,-197.669823,0.00030958,7]
[319588708,1710883891410,-197.669823,0.00030958,7]
[319588709,1710883891419,-500.0,0.00030958,2]
[319588710,1710883891429,-537.84,0.00030958,2]
[319588711,1710883891438,-567.22,0.00030958,2]
[319588712,1710883891447,-1100.67,0.00030958,2]
[319588713,1710883891457,-197.669823,0.00030958,7]
[319588714,1710883891467,-3604.5,0.00030958,2]
[319588715,1710883891476,-197.669823,0.00030958,7]
[319588716,1710883891487,-197.669823,0.00030958,7]
[319588717,1710883891497,-500.0,0.00030958,2]
[319588718,1710883891507,-2094.61,0.00030958,2]
[319588719,1710883891517,-830.55,0.00030958,2]
[319588720,1710883891529,-62217.7,0.00030958,2]
[319588721,1710883891540,-4631.22,0.00030958,2]
[319588722,1710883891550,-27416.23,0.00030958,2]
[319588723,1710883891560,-543.94,0.00030958,2]
[319588724,1710883891570,-10729.57,0.00030958,2]
[319588725,1710883891580,-7584.08,0.00030958,2]
[319588726,1710883891591,-500.0,0.00030958,2]
[319588727,1710883891601,-5369.24,0.00030958,2]
[319588728,1710883891611,-4331.12,0.00030958,2]
[319588729,1710883891620,-1227.45,0.00030958,2]
[319588730,1710883891630,-1532.97,0.00030958,2]
[319588731,1710883891640,-500.0,0.00030958,2]
[319588732,1710883891650,-3357.98,0.00030958,2]
[319588733,1710883891659,-6187.66,0.00030958,2]
[319588734,1710883891669,-500.0,0.00030958,2]
[319588735,1710883891679,-613.33,0.00030958,2]
[319588736,1710883891690,-7088.3,0.00030958,2]
[319588737,1710883891700,-8882.1,0.00030958,2]
[319588738,1710883891709,-500.0,0.00030958,2]
[319588739,1710883891719,-3796.41,0.00030958,2]
[319588740,1710883891729,-500.0,0.00030958,2]
[319588741,1710883891738,-500.0,0.00030958,2]
[319588742,1710883891748,-1290.92,0.00030958,2]
[319588743,1710883891758,-607.31,0.00030958,2]
[319588744,1710883891767,-1917.48,0.00030958,2]
[319588745,1710883891779,-1016.18,0.00030958,2]
[319588746,1710883891788,-1875.01,0.00030958,2]
[319588747,1710883891797,-16905.48,0.00030958,2]
[319588748,1710883891806,-3172.03,0.00030958,2]
[319588749,1710883891816,-35692.07,0.00030958,2]
[319588750,1710883891827,-500.0,0.00030958,2]
[319588751,1710883891837,-1297.28,0.00030958,2]
[319588752,1710883891846,-1142.27,0.00030958,2]
[319588753,1710883891856,-855.8,0.00030958,2]
[319588754,1710883891866,-500.0,0.00030958,2]
[319588755,1710883891875,-913.73,0.00030958,2]
[319588756,1710883891885,-2234.13,0.00030958,2]
[319588757,1710883891894,-17286.9,0.00030958,2]
[319588758,1710883891903,-866.16,0.00030958,2]
[319588759,1710883891913,-4688.61,0.00030958,2]
[319588760,1710883891922,-500.0,0.00030958,2]
[319588761,1710883891932,-500.0,0.00030958,2]
[319588762,1710883891942,-500.0,0.00030958,2]
[319588763,1710883891953,-500.0,0.00030958,2]
[319588764,1710883891962,-1996.89,0.00030958,2]
[319588765,1710883891972,-768.83,0.00030958,2]
[319588766,1710883891982,-566.2,0.00030958,2]
[319588767,1710883891991,-2249.09,0.00030958,2]
[319588768,1710883892001,-12794.23,0.00030958,2]
[319588769,1710883892011,-500.0,0.00030958,2]
[319588770,1710883892022,-514.47,0.00030958,2]
[319588771,1710883892031,-965.87,0.00030958,2]
[319588772,1710883892041,-721.54,0.00030958,2]
[319588773,1710883892051,-5976.67,0.00030958,2]
[319588774,1710883892061,-500.0,0.00030958,2]
[319588775,1710883892071,-2375.0,0.00030958,2]
[319588776,1710883892080,-7791.7,0.00030958,2]
[319588777,1710883892090,-5055.25,0.00030958,2]
[319588778,1710883892099,-387.81412449,0.00030958,2]
[319588779,1710883892113,-232.68847469,0.00030958,2]
[319588780,1710883892122,-6447.0755401,0.00031032,2]
[319588781,1710883892132,-234.05639917,0.00031132,2]
[319588782,1710883892142,-500.0,0.0003114,2]
[319588783,1710883892152,-222.032006,0.00031211,4]
[319588784,1710883892162,-222.032006,0.00031211,3]
[319588785,1710883892172,-222.032006,0.00031221,3]
[319588786,1710883892182,-222.032006,0.00031221,4]
[319588787,1710883892192,-222.032006,0.00031231,4]
[319588788,1710883892201,-222.032006,0.00031231,3]
[319588789,1710883892211,-150.0,0.00031231,2]
[319588790,1710883892221,-150.0,0.00031231,2]
[319588791,1710883892231,-6447.0755401,0.00031232,2]
[319588792,1710883892241,-210.46497552,0.00031232,2]
[319588793,1710883892250,-183.44492072,0.00031232,2]
[319588794,1710883892260,-500.0,0.00031232,2]
[319588795,1710883892269,-500.0,0.00031232,2]
[319588796,1710883892280,-500.0,0.00031232,2]
[319588797,1710883892289,-500.0,0.00031232,2]
[319588798,1710883892300,-541.15,0.00031232,2]
[319588799,1710883892309,-500.0,0.00031232,2]
[319588800,1710883892319,-500.0,0.00031232,2]
[319588801,1710883892328,-500.0,0.00031232,2]
[319588802,1710883892338,-782.55,0.00031232,2]
[319588803,1710883892347,-1175.0,0.00031232,2]
[319588804,1710883892357,-813.24,0.00031232,2]
[319588805,1710883892367,-569.24,0.00031232,2]
[319588806,1710883892376,-798.81,0.00031232,2]
[319588807,1710883892386,-500.0,0.00031232,2]
[319588808,1710883892396,-500.0,0.00031232,2]
[319588809,1710883892407,-823.89,0.00031232,2]
[319588810,1710883892417,-500.0,0.00031232,2]
[319588811,1710883892427,-590.39,0.00031232,2]
[319588812,1710883892437,-621.72,0.00031232,2]
[319588813,1710883892447,-574.34920637,0.00031232,2]
[319588814,1710883892457,-500.0,0.00031232,2]
[319588815,1710883892466,-500.0,0.00031232,2]
[319588816,1710883892476,-500.0,0.00031232,2]
[319588817,1710883892486,-500.0,0.00031232,2]
[319588818,1710883892497,-500.0,0.00031232,2]
[319588819,1710883892507,-500.0,0.00031232,2]
[319588820,1710883892517,-500.0,0.00031232,2]
[319588821,1710883892527,-500.0,0.00031232,2]
[319588822,1710883892537,-500.0,0.00031232,2]
[319588823,1710883892547,-500.0,0.00031232,2]
[319588824,1710883892557,-500.0,0.00031232,2]
[319588825,1710883892566,-500.0,0.00031232,2]
[319588826,1710883892576,-750.91,0.00031232,2]
[319588827,1710883892586,-827.98,0.00031232,2]
[319588828,1710883892596,-500.0,0.00031232,2]
[319588829,1710883892606,-562.59,0.00031232,2]
[319588830,1710883892616,-998.0,0.00031232,2]
[319588831,1710883892626,-500.0,0.00031232,2]
[319588832,1710883892636,-570.65,0.00031232,2]
[319588833,1710883892645,-500.0,0.00031232,2]
[319588834,1710883892655,-500.0,0.00031232,2]
[319588835,1710883892666,-500.0,0.00031232,2]
[319588836,1710883892675,-500.0,0.00031232,2]
[319588837,1710883892686,-554.57334311,0.00031232,2]
[319588838,1710883892695,-500.0,0.00031232,2]
[319588839,1710883892705,-1839.1,0.00031232,2]
[319588840,1710883892714,-500.0,0.00031232,2]
[319588841,1710883892725,-500.0,0.00031232,2]
[319588842,1710883892734,-500.0,0.00031232,2]
[319588843,1710883892745,-500.0,0.00031232,2]
[319588844,1710883892754,-500.0,0.00031232,2]
[319588845,1710883892765,-1032.08,0.00031232,2]
[319588846,1710883892776,-729.17,0.00031232,2]
[319588847,1710883892786,-500.0,0.00031232,2]
[319588848,1710883892795,-1913.06,0.00031232,2]
[319588849,1710883892805,-500.0,0.00031232,2]
[319588850,1710883892815,-500.0,0.00031232,2]
[319588851,1710883892826,-500.0,0.00031232,2]
[319588852,1710883892837,-1372.24,0.00031232,2]
[319588853,1710883892850,-500.0,0.00031232,2]
[319588854,1710883892860,-711.63,0.00031232,2]
[319588855,1710883892870,-500.0,0.00031232,2]
[319588856,1710883892880,-1163.5,0.00031232,2]
[319588857,1710883892890,-500.0,0.00031232,2]
[319588858,1710883892900,-500.0,0.00031232,2]
[319588859,1710883892911,-342.6472849,0.00031232,2]
[319588860,1710883892922,-500.0,0.00031232,2]
[319588861,1710883892931,-500.0,0.00031232,2]
[319588862,1710883892942,-500.0,0.00031232,2]
[319588863,1710883892952,-500.0,0.00031232,2]
[319588864,1710883892962,-652.32,0.00031232,2]
[319588865,1710883892972,-500.0,0.00031232,2]
[319588866,1710883892982,-574.55764469,0.00031232,2]
[319588867,1710883892992,-500.0,0.00031232,2]
[319588868,1710883893003,-500.0,0.00031232,2]
[319588869,1710883893013,-500.0,0.00031232,2]
[319588870,1710883893023,-910.23,0.00031232,2]
[319588871,1710883893034,-500.0,0.00031232,2]
[319588872,1710883893046,-500.0,0.00031232,2]
[319588873,1710883893056,-500.0,0.00031232,2]
[319588874,1710883893066,-740.28,0.00031232,2]
[319588875,1710883893076,-624.91,0.00031232,2]
[319588876,1710883893086,-500.0,0.00031232,2]
[319588877,1710883893096,-968.04,0.00031232,2]
[319588878,1710883893107,-500.0,0.00031232,2]
[319588879,1710883893118,-500.0,0.00031232,2]
[319588880,1710883893128,-500.0,0.00031232,2]
[319588881,1710883893138,-500.0,0.00031232,2]
[319588882,1710883893149,-832.42,0.00031232,2]
[319588883,1710883893159,-500.0,0.00031232,2]
[319588884,1710883893169,-500.0,0.00031232,2]
[319588885,1710883893178,-500.0,0.00031232,2]
[319588886,1710883893188,-500.0,0.00031232,2]
[319588887,1710883893198,-500.0,0.00031232,2]
[319588888,1710883893209,-510.18,0.00031232,2]
[319588889,1710883893218,-569.40070158,0.00031232,2]
[319588890,1710883893228,-500.0,0.00031232,2]
[319588891,1710883893237,-500.0,0.00031232,2]
[319588892,1710883893247,-1150.05,0.00031232,2]
[319588893,1710883893257,-500.0,0.00031232,2]
[319588894,1710883893266,-608.08,0.00031232,2]
[319588895,1710883893277,-505.97,0.00031232,2]
[319588896,1710883893287,-626.77,0.00031232,2]
[319588897,1710883893297,-1660.24,0.00031232,2]
[319588898,1710883893306,-500.0,0.00031232,2]
[319588899,1710883893316,-1083.97,0.00031232,2]
[319588900,1710883893325,-500.0,0.00031232,2]
[319588901,1710883893335,-500.0,0.00031232,2]
[319588902,1710883893345,-573.58,0.00031232,2]
[319588903,1710883893354,-500.0,0.00031232,2]
[319588904,1710883893364,-713.26,0.00031232,2]
[319588905,1710883893373,-524.58,0.00031232,2]
[319588906,1710883893383,-1659.61,0.00031232,2]
[319588907,1710883893393,-786.87,0.00031232,2]
[319588908,1710883893403,-987.6,0.00031232,2]
[319588909,1710883893413,-562.22,0.00031232,2]
[319588910,1710883893423,-884.6,0.00031232,2]
[319588911,1710883893433,-500.0,0.00031232,2]
[319588912,1710883893443,-509.12,0.00031232,2]
[319588913,1710883893453,-500.0,0.00031232,2]
[319588914,1710883893463,-1565.75,0.00031232,2]
[319588915,1710883893472,-704.58,0.00031232,2]
[319588916,1710883893481,-389.08227359,0.00031232,2]
[319588917,1710883893491,-509.76968026,0.00031232,2]
[319588918,1710883893500,-500.0,0.00031232,2]
[319588919,1710883893510,-500.0,0.00031232,2]
[319588920,1710883893519,-500.0,0.00031232,2]
[319588921,1710883893531,-500.0,0.00031232,2]
[319588922,1710883893540,-500.0,0.00031232,2]
[319588923,1710883893549,-1298.95,0.00031232,2]
[319588924,1710883893559,-1177.64,0.00031232,2]
[319588925,1710883893568,-500.0,0.00031232,2]
[319588926,1710883893577,-766.46,0.00031232,2]
[319588927,1710883893586,-500.0,0.00031232,2]
[319588928,1710883893596,-511.05981036,0.00031232,2]
[319588929,1710883893605,-2115.61,0.00031232,2]
[319588930,1710883893615,-500.0,0.00031232,2]
[319588931,1710883893624,-1208.26,0.00031232,2]
[319588932,1710883893634,-1208.9,0.00031232,2]
[319588933,1710883893644,-766.73,0.00031232,2]
[319588934,1710883893654,-723.63,0.00031232,2]
[319588935,1710883893664,-710.55,0.00031232,2]
[319588936,1710883893952,-755.48,0.00031232,2]
[319588937,1710883893963,-500.0,0.00031232,2]
[319588938,1710883893973,-500.0,0.00031232,2]
[319588939,1710883893982,-2700.32,0.00031232,2]
[319588940,1710883893992,-500.0,0.00031232,2]
[319588941,1710883894001,-996.42,0.00031232,2]
[319588942,1710883894011,-500.0,0.00031232,2]
[319588943,1710883894020,-500.0,0.00031232,2]
[319588944,1710883894030,-963.09,0.00031232,2]
[319588945,1710883894040,-708.23,0.00031232,2]
[319588946,1710883894050,-698.72,0.00031232,2]
[319588947,1710883894059,-500.0,0.00031232,2]
[319588948,1710883894069,-1021.3,0.00031232,2]
[319588949,1710883894079,-535.49,0.00031232,2]
[319588950,1710883894088,-500.0,0.00031232,2]
[319588951,1710883894098,-300.60512616,0.00031232,2]
[319588952,1710883894108,-4097.82,0.00031232,2]
[319588953,1710883894118,-1107.96,0.00031232,2]
[319588954,1710883894131,-588.9,0.00031232,2]
[319588955,1710883894141,-500.0,0.00031232,2]
[319588956,1710883894150,-500.0,0.00031232,2]
[319588957,1710883894159,-568.7101608,0.00031232,2]
[319588958,1710883894169,-500.0,0.00031232,2]
[319588959,1710883894179,-678.64,0.00031232,2]
[319588960,1710883894188,-500.0,0.00031232,2]
[319588961,1710883894198,-500.0,0.00031232,2]
[319588962,1710883894209,-500.0,0.00031232,2]
[319588963,1710883894220,-500.0,0.00031232,2]
[319588964,1710883894229,-685.69,0.00031232,2]
[319588965,1710883894239,-751.92,0.00031232,2]
[319588966,1710883894249,-2201.35,0.00031232,2]
[319588967,1710883894259,-1806.15,0.00031232,2]
[319588968,1710883894268,-500.0,0.00031232,2]
[319588969,1710883894278,-223.24278557,0.00031232,2]
[319588970,1710883894288,-1515.11,0.00031232,2]
[319588971,1710883894298,-1513.03,0.00031232,2]
[319588972,1710883894307,-500.0,0.00031232,2]
[319588973,1710883894316,-838.64,0.00031232,2]
[319588974,1710883894326,-500.0,0.00031232,2]
[319588975,1710883894335,-693.29,0.00031232,2]
[319588976,1710883894345,-4074.4,0.00031232,2]
[319588977,1710883894354,-603.07,0.00031232,2]
[319588978,1710883894363,-500.0,0.00031232,2]
[319588979,1710883894372,-638.83,0.00031232,2]
[319588980,1710883894381,-781.62,0.00031232,2]
[319588981,1710883894390,-500.0,0.00031232,2]
[319588982,1710883894400,-500.0,0.00031232,2]
[319588983,1710883894409,-500.0,0.00031232,2]
[319588984,1710883894419,-1180.36,0.00031232,2]
[319588985,1710883894428,-1494.04,0.00031232,2]
[319588986,1710883894437,-691.03,0.00031232,2]
[319588987,1710883894446,-500.0,0.00031232,2]
[319588988,1710883894456,-500.0,0.00031232,2]
[319588989,1710883894465,-1058.59,0.00031232,2]
[319588990,1710883894475,-782.29,0.00031232,2]
[319588991,1710883894484,-500.0,0.00031232,2]
[319588992,1710883894494,-500.0,0.00031232,2]
[319588993,1710883894503,-2757.61,0.00031232,2]
[319588994,1710883894513,-1130.81,0.00031232,2]
[319588995,1710883894522,-934.19,0.00031232,2]
[319588996,1710883894533,-500.0,0.00031232,2]
[319588997,1710883894542,-502.71,0.00031232,2]
[319588998,1710883894552,-626.57,0.00031232,2]
[319588999,1710883894561,-500.0,0.00031232,2]
[319589000,1710883894571,-781.11,0.00031232,2]
[319589001,1710883894581,-505.09,0.00031232,2]
[319589002,1710883894590,-846.76,0.00031232,2]
[319589003,1710883894600,-912.33,0.00031232,2]
[319589004,1710883894609,-2582.04,0.00031232,2]
[319589005,1710883894618,-500.0,0.00031232,2]
[319589006,1710883894628,-1278.95,0.00031232,2]
[319589007,1710883894637,-1020.62,0.00031232,2]
[319589008,1710883894646,-1074.07,0.00031232,2]
[319589009,1710883894656,-500.0,0.00031232,2]
[319589010,1710883894665,-1342.47,0.00031232,2]
[319589011,1710883894675,-500.0,0.00031232,2]
[319589012,1710883894684,-500.0,0.00031232,2]
[319589013,1710883894693,-859.38,0.00031232,2]
[319589014,1710883894705,-869.06,0.00031232,2]
[319589015,1710883894715,-500.0,0.00031232,2]
[319589016,1710883894724,-500.0,0.00031232,2]
[319589017,1710883894734,-567.85,0.00031232,2]
[319589018,1710883894744,-581.9158372,0.00031232,2]
[319589019,1710883894753,-500.0,0.00031232,2]
[319589020,1710883894763,-500.0,0.00031232,2]
[319589021,1710883894772,-540.58,0.00031232,2]
[319589022,1710883894783,-691.28,0.00031232,2]
[319589023,1710883894792,-500.0,0.00031232,2]
[319589024,1710883894801,-1048.73,0.00031232,2]
[319589025,1710883894811,-731.41,0.00031232,2]
[319589026,1710883894820,-1662.72,0.00031232,2]
[319589027,1710883894829,-795.79,0.00031232,2]
[319589028,1710883894838,-500.0,0.00031232,2]
[319589029,1710883894848,-500.0,0.00031232,2]
[319589030,1710883894857,-863.23,0.00031232,2]
[319589031,1710883894867,-1377.63,0.00031232,2]
[319589032,1710883894876,-500.0,0.00031232,2]
[319589033,1710883894885,-2750.0,0.00031232,2]
[319589034,1710883894894,-1320.23,0.00031232,2]
[319589035,1710883894903,-500.0,0.00031232,2]
[319589036,1710883894913,-150.0,0.00031232,2]
[319589037,1710883894922,-500.0,0.00031232,2]
[319589038,1710883894931,-500.0,0.00031232,2]
[319589039,1710883894941,-852.1,0.00031232,2]
[319589040,1710883894951,-500.0,0.00031232,2]
[319589041,1710883894961,-500.0,0.00031232,2]
[319589042,1710883894973,-500.0,0.00031232,2]
[319589043,1710883894982,-500.0,0.00031232,2]
[319589044,1710883894993,-2264.1,0.00031232,2]
[319589045,1710883895003,-667.68823722,0.00031232,2]
[319589046,1710883895012,-484.49172106,0.00031232,2]
[319589047,1710883895022,-533.15,0.00031232,2]
[319589048,1710883895032,-500.0,0.00031232,2]
[319589049,1710883895042,-590.4,0.00031232,2]
[319589050,1710883895052,-768.62,0.00031232,2]
[319589051,1710883895063,-813.65,0.00031232,2]
[319589052,1710883895072,-1706.37,0.00031232,2]
[319589053,1710883895082,-500.0,0.00031232,2]
[319589054,1710883895092,-710.02,0.00031232,2]
[319589055,1710883895102,-951.49,0.00031232,2]
[319589056,1710883895114,-624.42,0.00031232,2]
[319589057,1710883895124,-500.0,0.00031232,2]
[319589058,1710883895137,-500.0,0.00031232,2]
[319589059,1710883895149,-500.0,0.00031232,2]
[319589060,1710883895160,-500.0,0.00031232,2]
[319589061,1710883895170,-1083.59,0.00031232,2]
[319589062,1710883895181,-1353.58,0.00031232,2]
[319589063,1710883895192,-500.0,0.00031232,2]
[319589064,1710883895202,-253.78532772,0.00031232,2]
[319589065,1710883895213,-851.26,0.00031232,2]
[319589066,1710883895223,-797.1,0.00031232,2]
[319589067,1710883895233,-546.84859804,0.00031232,2]